[Event "Live Chess"]
[Site "Chess.com"]
[Date "2023.05.21"]
[Round "-"]
[White "grillage"]
[Black "Man-Del-Brot"]
[Result "1-0"]
[WhiteElo "1791"]
[BlackElo "1075"]
[TimeControl "300"]
[EndTime "8:44:59 PDT"]
[Termination "grillage won by resignation"]

1. d4 {[%clk 0:04:58.3]} 1... Nf6 {[%clk 0:04:58.3]} 2. Nc3 {[%clk 0:04:56.6]}
2... d5 {[%clk 0:04:56.8]} 3. Bf4 {[%clk 0:04:54.9]} 3... Nbd7 {[%clk
0:04:55.5]} 4. Nb5 {[%clk 0:04:43.9]} 4... e5 {[%clk 0:04:52.7]} 5. dxe5 {[%clk
0:04:33]} 5... Nh5 {[%clk 0:04:51.3]} 6. Bg3 {[%clk 0:04:27]} 6... Nxg3 {[%clk
0:04:49.8]} 7. hxg3 {[%clk 0:04:26]} 7... Nxe5 {[%clk 0:04:45.8]} 8. Qxd5 {[%clk
0:04:25]} 8... Bd6 {[%clk 0:04:23.6]} 9. Nxd6+ {[%clk 0:04:19.5]} 9... cxd6
{[%clk 0:04:16.8]} 10. O-O-O {[%clk 0:04:17.6]} 10... O-O {[%clk 0:03:54.8]} 11.
Qxd6 {[%clk 0:04:15.7]} 11... Qxd6 {[%clk 0:03:53.3]} 12. Rxd6 {[%clk 0:04:14]}
12... Be6 {[%clk 0:03:31.1]} 13. Nh3 {[%clk 0:04:04.4]} 13... Rad8 {[%clk
0:03:21.5]} 14. Rxd8 {[%clk 0:04:02.7]} 14... Rxd8 {[%clk 0:03:20.2]} 15. e3
{[%clk 0:04:00]} 15... h6 {[%clk 0:03:08.9]} 16. Be2 {[%clk 0:03:58.3]} 16...
Kh7 {[%clk 0:03:00.6]} 17. Rd1 {[%clk 0:03:54.6]} 17... Rxd1+ {[%clk 0:02:44.7]}
18. Bxd1 {[%clk 0:03:48.3]} 18... b6 {[%clk 0:02:42]} 19. b3 {[%clk 0:03:46.6]}
19... Nc6 {[%clk 0:02:35.6]} 20. Nf4 {[%clk 0:03:45.4]} 20... Nb4 {[%clk
0:02:22]} 21. Kb2 {[%clk 0:03:40.4]} 21... Bd7 {[%clk 0:02:02]} 22. Bf3 {[%clk
0:03:34]} 22... Nc6 {[%clk 0:01:56.9]} 23. Bxc6 {[%clk 0:03:29.8]} 23... Bxc6
{[%clk 0:01:55.5]} 24. f3 {[%clk 0:03:25]} 24... f6 {[%clk 0:01:52]} 25. c4
{[%clk 0:03:20.2]} 25... a6 {[%clk 0:01:49.8]} 26. Kc3 {[%clk 0:03:19.2]} 26...
b5 {[%clk 0:01:48.4]} 27. c5 {[%clk 0:03:06.6]} 27... a5 {[%clk 0:01:45.5]} 28.
a3 {[%clk 0:03:05.6]} 28... a4 {[%clk 0:01:39.2]} 29. b4 {[%clk 0:03:04.8]}
29... Be8 {[%clk 0:01:34.3]} 30. Kd4 {[%clk 0:03:03]} 30... Kg8 {[%clk
0:01:31.5]} 31. Kd5 {[%clk 0:02:55]} 31... Kf7 {[%clk 0:01:30.3]} 32. Kd6 {[%clk
0:02:54]} 32... g5 {[%clk 0:01:24.2]} 33. Nd5 {[%clk 0:02:52.2]} 33... Kg6
{[%clk 0:01:20.6]} 34. c6 {[%clk 0:02:50.4]} 34... f5 {[%clk 0:01:08.3]} 35. c7
{[%clk 0:02:48.6]} 35... f4 {[%clk 0:01:04.4]} 36. gxf4 {[%clk 0:02:46.3]} 36...
gxf4 {[%clk 0:01:02.9]} 37. Nxf4+ {[%clk 0:02:43.6]} 37... Kf5 {[%clk
0:01:01.2]} 38. c8=Q+ {[%clk 0:02:42.4]} 1-0

[Event "Live Chess"]
[Site "Chess.com"]
[Date "2023.05.21"]
[Round "-"]
[White "Misha145Chess"]
[Black "alanmike75"]
[Result "0-1"]
[WhiteElo "621"]
[BlackElo "1600"]
[TimeControl "300"]
[EndTime "8:45:44 PDT"]
[Termination "alanmike75 won by checkmate"]

1. e4 {[%clk 0:04:57.4]} 1... e5 {[%clk 0:04:58.5]} 2. Nf3 {[%clk 0:04:56.3]}
2... d6 {[%clk 0:04:57]} 3. Bc4 {[%clk 0:04:53]} 3... Be7 {[%clk 0:04:55.4]} 4.
Nc3 {[%clk 0:04:51.9]} 4... Nf6 {[%clk 0:04:54.3]} 5. O-O {[%clk 0:04:47.3]}
5... O-O {[%clk 0:04:53.2]} 6. Re1 {[%clk 0:04:46.2]} 6... c5 {[%clk 0:04:51.9]}
7. Ng5 {[%clk 0:04:40.5]} 7... Nc6 {[%clk 0:04:49.5]} 8. d3 {[%clk 0:04:18.3]}
8... Nd4 {[%clk 0:04:47.6]} 9. h3 {[%clk 0:03:58.3]} 9... a6 {[%clk 0:04:36.5]}
10. Bxf7+ {[%clk 0:03:37.1]} 10... Rxf7 {[%clk 0:04:33.9]} 11. Nxf7 {[%clk
0:03:37]} 11... Kxf7 {[%clk 0:04:32.7]} 12. Bg5 {[%clk 0:03:36.1]} 12... Kg8
{[%clk 0:04:24.1]} 13. Ne2 {[%clk 0:03:19.4]} 13... Be6 {[%clk 0:04:16.2]} 14.
Nxd4 {[%clk 0:03:17.4]} 14... cxd4 {[%clk 0:04:14.8]} 15. c3 {[%clk 0:03:15.7]}
15... dxc3 {[%clk 0:04:11.5]} 16. d4 {[%clk 0:03:13.2]} 16... cxb2 {[%clk
0:04:01.4]} 17. Rb1 {[%clk 0:03:11.9]} 17... Qb6 {[%clk 0:03:36.7]} 18. d5
{[%clk 0:03:04.7]} 18... Bd7 {[%clk 0:03:33.9]} 19. Re2 {[%clk 0:02:58.6]} 19...
Qd4 {[%clk 0:03:11.8]} 20. Qxd4 {[%clk 0:02:55.5]} 20... exd4 {[%clk 0:03:10.3]}
21. e5 {[%clk 0:02:53.6]} 21... dxe5 {[%clk 0:03:06.3]} 22. Rxe5 {[%clk
0:02:52.4]} 22... Bd6 {[%clk 0:03:03.6]} 23. Re2 {[%clk 0:02:42.3]} 23... Nxd5
{[%clk 0:03:01.5]} 24. Rexb2 {[%clk 0:02:41.1]} 24... b5 {[%clk 0:02:59.4]} 25.
Ra1 {[%clk 0:02:36.6]} 25... h6 {[%clk 0:02:49.4]} 26. Bd2 {[%clk 0:02:33.8]}
26... Rc8 {[%clk 0:02:44.7]} 27. a4 {[%clk 0:02:27.3]} 27... Nc3 {[%clk
0:02:25.6]} 28. Rc2 {[%clk 0:02:11.9]} 28... bxa4 {[%clk 0:02:20.7]} 29. Bxc3
{[%clk 0:02:10.3]} 29... dxc3 {[%clk 0:02:18.7]} 30. Rac1 {[%clk 0:02:04.3]}
30... Be5 {[%clk 0:02:13.1]} 31. g3 {[%clk 0:02:01.3]} 31... Bb5 {[%clk
0:02:07.5]} 32. f4 {[%clk 0:01:57.9]} 32... Bf6 {[%clk 0:02:04.2]} 33. g4 {[%clk
0:01:54.6]} 33... g5 {[%clk 0:02:01.2]} 34. fxg5 {[%clk 0:01:53]} 34... hxg5
{[%clk 0:01:55.8]} 35. Kf2 {[%clk 0:01:51.7]} 35... Kg7 {[%clk 0:01:48.5]} 36.
Ke3 {[%clk 0:01:50.8]} 36... a3 {[%clk 0:01:40.2]} 37. Ra1 {[%clk 0:01:45.5]}
37... Be7 {[%clk 0:01:33.8]} 38. Kd4 {[%clk 0:01:41.9]} 38... Bb4 {[%clk
0:01:30.1]} 39. Ke5 {[%clk 0:01:22.2]} 39... Kg6 {[%clk 0:01:22.8]} 40. Ke6
{[%clk 0:01:20.5]} 40... Ba4 {[%clk 0:01:16.9]} 41. Rcc1 {[%clk 0:01:16]} 41...
c2 {[%clk 0:01:14.5]} 42. Ke5 {[%clk 0:01:10.2]} 42... Rc3 {[%clk 0:01:02.6]}
43. Ra2 {[%clk 0:01:06.4]} 43... Rxh3 {[%clk 0:00:59.4]} 44. Ke4 {[%clk
0:01:02.1]} 44... Bb3 {[%clk 0:00:53.8]} 45. Raa1 {[%clk 0:00:58.1]} 45... a2
{[%clk 0:00:51.7]} 46. Ke5 {[%clk 0:00:53.3]} 46... a5 {[%clk 0:00:49.9]} 47.
Kd4 {[%clk 0:00:51.9]} 47... Bc3+ {[%clk 0:00:45.8]} 48. Kc5 {[%clk 0:00:50.4]}
48... Bxa1 {[%clk 0:00:44.4]} 49. Rxa1 {[%clk 0:00:47.4]} 49... Rc3+ {[%clk
0:00:41.8]} 50. Kb5 {[%clk 0:00:45.1]} 50... c1=Q {[%clk 0:00:39.5]} 51. Rxc1
{[%clk 0:00:44.2]} 51... Rxc1 {[%clk 0:00:38.3]} 52. Kxa5 {[%clk 0:00:43]} 52...
Rg1 {[%clk 0:00:37]} 53. Kb4 {[%clk 0:00:41.6]} 53... a1=Q {[%clk 0:00:34.7]}
54. Kxb3 {[%clk 0:00:41.5]} 54... Rxg4 {[%clk 0:00:33.2]} 55. Kc2 {[%clk
0:00:40.3]} 55... Qa2+ {[%clk 0:00:31.9]} 56. Kc3 {[%clk 0:00:38.7]} 56... Qa3+
{[%clk 0:00:30.8]} 57. Kd2 {[%clk 0:00:36.8]} 57... Rg2+ {[%clk 0:00:30.1]} 58.
Ke1 {[%clk 0:00:34]} 58... Qa1# {[%clk 0:00:29.4]} 0-1

[Event "Live Chess"]
[Site "Chess.com"]
[Date "2023.05.21"]
[Round "-"]
[White "peter-785"]
[Black "Doge_Dandolo"]
[Result "0-1"]
[WhiteElo "1169"]
[BlackElo "1856"]
[TimeControl "300"]
[EndTime "8:45:56 PDT"]
[Termination "Doge_Dandolo won on time"]

1. e4 {[%clk 0:04:51.8]} 1... c6 {[%clk 0:04:59.1]} 2. Nf3 {[%clk 0:04:49.3]}
2... d5 {[%clk 0:04:58.2]} 3. exd5 {[%clk 0:04:47.1]} 3... cxd5 {[%clk
0:04:57.2]} 4. d4 {[%clk 0:04:46.7]} 4... Nc6 {[%clk 0:04:55.9]} 5. Be2 {[%clk
0:04:44.6]} 5... Bg4 {[%clk 0:04:54.8]} 6. O-O {[%clk 0:04:43.9]} 6... Qc7
{[%clk 0:04:51.6]} 7. h3 {[%clk 0:04:42.5]} 7... Bxf3 {[%clk 0:04:49.5]} 8. Bxf3
{[%clk 0:04:40.2]} 8... e6 {[%clk 0:04:48.9]} 9. Re1 {[%clk 0:04:33.7]} 9... Be7
{[%clk 0:04:46.7]} 10. Be3 {[%clk 0:04:29.1]} 10... Nf6 {[%clk 0:04:45.3]} 11.
Qd2 {[%clk 0:04:27.4]} 11... O-O {[%clk 0:04:42.4]} 12. c3 {[%clk 0:04:20.8]}
12... Rfc8 {[%clk 0:04:40.7]} 13. Na3 {[%clk 0:04:19]} 13... a6 {[%clk
0:04:39.4]} 14. Nc2 {[%clk 0:04:14.5]} 14... b5 {[%clk 0:04:37.8]} 15. Bf4
{[%clk 0:04:03.9]} 15... Bd6 {[%clk 0:04:36.1]} 16. Bxd6 {[%clk 0:04:02.2]}
16... Qxd6 {[%clk 0:04:35]} 17. Ne3 {[%clk 0:03:54.4]} 17... Rab8 {[%clk
0:04:30]} 18. Ng4 {[%clk 0:03:44.3]} 18... Nxg4 {[%clk 0:04:26]} 19. Bxg4 {[%clk
0:03:42.2]} 19... b4 {[%clk 0:04:19.8]} 20. Rab1 {[%clk 0:02:47.2]} 20... bxc3
{[%clk 0:04:04.8]} 21. bxc3 {[%clk 0:02:46.1]} 21... Na5 {[%clk 0:03:58]} 22.
Be2 {[%clk 0:02:23.3]} 22... Nc4 {[%clk 0:03:53.4]} 23. Bxc4 {[%clk 0:02:20]}
23... Rxc4 {[%clk 0:03:50.9]} 24. Rb2 {[%clk 0:01:55.2]} 24... g6 {[%clk
0:03:37.3]} 25. Reb1 {[%clk 0:01:47.5]} 25... Rxb2 {[%clk 0:03:33.7]} 26. Rxb2
{[%clk 0:01:39.9]} 26... Qc7 {[%clk 0:03:32.6]} 27. Rb3 {[%clk 0:01:29.7]} 27...
a5 {[%clk 0:03:29.9]} 28. Ra3 {[%clk 0:01:24.2]} 28... a4 {[%clk 0:03:26]} 29.
Qb2 {[%clk 0:01:14.9]} 29... Kg7 {[%clk 0:03:22.8]} 30. Qc2 {[%clk 0:01:09.1]}
30... Qb6 {[%clk 0:03:19.1]} 31. Rxa4 {[%clk 0:01:04.3]} 31... Qc6 {[%clk
0:03:10.9]} 32. Rxc4 {[%clk 0:01:02.5]} 32... Qxc4 {[%clk 0:03:09.7]} 33. Qb3
{[%clk 0:00:58.9]} 33... Qe2 {[%clk 0:03:08.3]} 34. a4 {[%clk 0:00:53.1]} 34...
Qe1+ {[%clk 0:03:07.1]} 35. Kh2 {[%clk 0:00:52.2]} 35... Qxf2 {[%clk 0:03:06]}
36. a5 {[%clk 0:00:50.6]} 36... Qf4+ {[%clk 0:03:03.7]} 37. Kg1 {[%clk
0:00:48.9]} 37... Qc1+ {[%clk 0:03:01.3]} 38. Kh2 {[%clk 0:00:46.7]} 38... Qa1
{[%clk 0:03:00]} 39. Qb4 {[%clk 0:00:38.4]} 39... h5 {[%clk 0:02:56.3]} 40. Qb5
{[%clk 0:00:20]} 40... Qxc3 {[%clk 0:02:52.9]} 41. a6 {[%clk 0:00:15.8]} 41...
Qxd4 {[%clk 0:02:48.9]} 42. Qc6 {[%clk 0:00:07.3]} 42... h4 {[%clk 0:02:44.3]}
43. Qc7 {[%clk 0:00:05.7]} 43... g5 {[%clk 0:02:30.2]} 44. a7 {[%clk 0:00:03.6]}
44... g4 {[%clk 0:02:27.8]} 45. hxg4 {[%clk 0:00:00.9]} 45... h3 {[%clk
0:02:23]} 0-1

[Event "Live Chess"]
[Site "Chess.com"]
[Date "2023.05.21"]
[Round "-"]
[White "ChessClubLive"]
[Black "OceanFloater"]
[Result "0-1"]
[WhiteElo "1590"]
[BlackElo "1048"]
[TimeControl "300"]
[EndTime "8:46:03 PDT"]
[Termination "OceanFloater won on time"]

1. e4 {[%clk 0:04:58.7]} 1... c6 {[%clk 0:04:58.9]} 2. f4 {[%clk 0:04:57.4]}
2... d5 {[%clk 0:04:58.3]} 3. exd5 {[%clk 0:04:56.2]} 3... cxd5 {[%clk
0:04:57.2]} 4. Nf3 {[%clk 0:04:56.1]} 4... e6 {[%clk 0:04:56.3]} 5. Bb5+ {[%clk
0:04:51.7]} 5... Bd7 {[%clk 0:04:53.8]} 6. Qe2 {[%clk 0:04:49.3]} 6... a6 {[%clk
0:04:47.5]} 7. Bxd7+ {[%clk 0:04:45.2]} 7... Qxd7 {[%clk 0:04:46.5]} 8. O-O
{[%clk 0:04:44.6]} 8... Nf6 {[%clk 0:04:44.1]} 9. Ne5 {[%clk 0:04:43.4]} 9...
Qb5 {[%clk 0:04:41.6]} 10. Qxb5+ {[%clk 0:04:41.1]} 10... axb5 {[%clk
0:04:40.6]} 11. Nc3 {[%clk 0:04:40.5]} 11... Nc6 {[%clk 0:04:39.7]} 12. Nxb5
{[%clk 0:04:35.3]} 12... Bc5+ {[%clk 0:04:37.4]} 13. Kh1 {[%clk 0:04:19.8]}
13... O-O {[%clk 0:04:27.6]} 14. c3 {[%clk 0:04:09]} 14... Nxe5 {[%clk
0:04:24.2]} 15. fxe5 {[%clk 0:04:07.4]} 15... Ne4 {[%clk 0:04:22]} 16. d4 {[%clk
0:04:02.3]} 16... Be7 {[%clk 0:04:16.5]} 17. Be3 {[%clk 0:03:26.1]} 17... f6
{[%clk 0:04:10.6]} 18. Nc7 {[%clk 0:03:21.5]} 18... fxe5 {[%clk 0:03:48.6]} 19.
Nxe6 {[%clk 0:03:06.8]} 19... Rxf1+ {[%clk 0:03:46.2]} 20. Rxf1 {[%clk
0:03:00.3]} 20... exd4 {[%clk 0:03:42.8]} 21. Bxd4 {[%clk 0:02:56]} 21... Nf6
{[%clk 0:03:32.1]} 22. a3 {[%clk 0:02:53.1]} 22... Kf7 {[%clk 0:03:24.9]} 23.
Nc7 {[%clk 0:02:51.7]} 23... Rd8 {[%clk 0:03:16.7]} 24. g4 {[%clk 0:02:36.5]}
24... Rd7 {[%clk 0:03:03.4]} 25. Nb5 {[%clk 0:02:24.8]} 25... h6 {[%clk
0:02:49.8]} 26. h4 {[%clk 0:02:23.1]} 26... g5 {[%clk 0:02:46]} 27. hxg5 {[%clk
0:02:10.4]} 27... hxg5 {[%clk 0:02:44.8]} 28. Be3 {[%clk 0:02:09.2]} 28... Kg6
{[%clk 0:02:36.6]} 29. Nd4 {[%clk 0:01:57.2]} 29... Nxg4 {[%clk 0:02:26.4]} 30.
Bc1 {[%clk 0:01:45.8]} 30... Bd6 {[%clk 0:02:00.6]} 31. Rf5 {[%clk 0:01:26]}
31... Rh7+ {[%clk 0:01:57.8]} 32. Kg1 {[%clk 0:01:21.7]} 32... Bh2+ {[%clk
0:01:53]} 33. Kf1 {[%clk 0:01:14.1]} 33... Bf4 {[%clk 0:01:39.5]} 34. Bxf4
{[%clk 0:00:56.2]} 34... gxf4 {[%clk 0:01:37.6]} 35. Rxf4 {[%clk 0:00:53.3]}
35... Ne3+ {[%clk 0:01:36.3]} 36. Ke2 {[%clk 0:00:48.6]} 36... Nc4 {[%clk
0:01:33.2]} 37. b3 {[%clk 0:00:35.7]} 37... Nxa3 {[%clk 0:01:27.1]} 38. Rg4+
{[%clk 0:00:30.5]} 38... Kf6 {[%clk 0:01:24.6]} 39. Rg8 {[%clk 0:00:18.9]} 39...
Rh2+ {[%clk 0:01:14.6]} 40. Kf3 {[%clk 0:00:17]} 40... Rh3+ {[%clk 0:01:12.5]}
41. Kg4 {[%clk 0:00:13.8]} 41... Rxc3 {[%clk 0:01:10.5]} 42. Rf8+ {[%clk
0:00:12.2]} 42... Ke5 {[%clk 0:01:08.9]} 43. Nf3+ {[%clk 0:00:09.1]} 43... Kd6
{[%clk 0:01:04.6]} 44. Rd8+ {[%clk 0:00:07.3]} 44... Kc6 {[%clk 0:00:56.7]} 45.
Rc8+ {[%clk 0:00:05.3]} 45... Kd6 {[%clk 0:00:50.7]} 46. Rxc3 {[%clk 0:00:04.2]}
46... d4 {[%clk 0:00:50]} 47. Rd3 {[%clk 0:00:02.5]} 47... Nb5 {[%clk
0:00:49.2]} 48. Nxd4 {[%clk 0:00:00.9]} 48... Nxd4 {[%clk 0:00:47.9]} 0-1

[Event "Live Chess"]
[Site "Chess.com"]
[Date "2023.05.21"]
[Round "-"]
[White "Hacker_2009"]
[Black "f4nomore"]
[Result "1/2-1/2"]
[WhiteElo "1947"]
[BlackElo "1379"]
[TimeControl "300"]
[EndTime "8:46:16 PDT"]
[Termination "Game drawn - timeout vs insufficient material"]

1. d4 {[%clk 0:04:58.1]} 1... g6 {[%clk 0:04:59.9]} 2. Nf3 {[%clk 0:04:52.1]}
2... Bg7 {[%clk 0:04:59.8]} 3. c4 {[%clk 0:04:50.2]} 3... d6 {[%clk 0:04:59.7]}
4. Nc3 {[%clk 0:04:47.5]} 4... Nf6 {[%clk 0:04:59.6]} 5. e4 {[%clk 0:04:46.8]}
5... O-O {[%clk 0:04:59.3]} 6. Be2 {[%clk 0:04:46]} 6... Nbd7 {[%clk 0:04:57.3]}
7. O-O {[%clk 0:04:45.5]} 7... c5 {[%clk 0:04:56]} 8. d5 {[%clk 0:04:44.3]} 8...
a6 {[%clk 0:04:54.2]} 9. a3 {[%clk 0:04:36.4]} 9... Ng4 {[%clk 0:04:51.1]} 10.
Bd2 {[%clk 0:04:30.4]} 10... Nge5 {[%clk 0:04:48.1]} 11. Nxe5 {[%clk 0:04:29.3]}
11... Nxe5 {[%clk 0:04:44.9]} 12. f4 {[%clk 0:04:28.8]} 12... Nd7 {[%clk
0:04:40.9]} 13. b4 {[%clk 0:04:27.9]} 13... b6 {[%clk 0:04:38.2]} 14. Rc1 {[%clk
0:04:26]} 14... cxb4 {[%clk 0:04:32.5]} 15. axb4 {[%clk 0:04:24.6]} 15... a5
{[%clk 0:04:23.3]} 16. bxa5 {[%clk 0:04:22.1]} 16... bxa5 {[%clk 0:04:20.6]} 17.
Nb5 {[%clk 0:04:14.1]} 17... Nc5 {[%clk 0:04:15.7]} 18. Bf3 {[%clk 0:04:09.5]}
18... Ba6 {[%clk 0:04:07.6]} 19. Bc3 {[%clk 0:03:58]} 19... f6 {[%clk
0:03:57.2]} 20. Nd4 {[%clk 0:03:52.2]} 20... Bxc4 {[%clk 0:03:42.8]} 21. Nc6
{[%clk 0:03:17.3]} 21... Qb6 {[%clk 0:03:36.5]} 22. Nxe7+ {[%clk 0:02:59.9]}
22... Kh8 {[%clk 0:03:33.7]} 23. Nc6 {[%clk 0:02:59.1]} 23... Bxf1 {[%clk
0:03:18.4]} 24. Kxf1 {[%clk 0:02:57.2]} 24... Qb5+ {[%clk 0:03:15.8]} 25. Be2
{[%clk 0:02:54.9]} 25... Qa4 {[%clk 0:03:03.7]} 26. Qxa4 {[%clk 0:02:52.5]}
26... Nxa4 {[%clk 0:03:01.1]} 27. Bd2 {[%clk 0:02:48.5]} 27... f5 {[%clk
0:02:49.1]} 28. e5 {[%clk 0:02:40.5]} 28... dxe5 {[%clk 0:02:42.2]} 29. fxe5
{[%clk 0:02:40.4]} 29... Rae8 {[%clk 0:02:22.4]} 30. e6 {[%clk 0:02:26.2]} 30...
Ra8 {[%clk 0:02:12.4]} 31. Bxa5 {[%clk 0:02:24]} 31... Bh6 {[%clk 0:01:48.8]}
32. Ra1 {[%clk 0:02:13.1]} 32... Nc5 {[%clk 0:01:43.9]} 33. Bc3+ {[%clk
0:02:02.6]} 33... Bg7 {[%clk 0:01:39.2]} 34. Bxg7+ {[%clk 0:01:58.1]} 34... Kxg7
{[%clk 0:01:37.5]} 35. Rxa8 {[%clk 0:01:57.3]} 35... Rxa8 {[%clk 0:01:34.3]} 36.
e7 {[%clk 0:01:52.6]} 36... Ne4 {[%clk 0:01:24.5]} 37. Bd3 {[%clk 0:01:41.4]}
37... Ra1+ {[%clk 0:01:17]} 38. Ke2 {[%clk 0:01:39.9]} 38... Nd6 {[%clk
0:01:09.9]} 39. Nd4 {[%clk 0:01:31]} 39... Ra2+ {[%clk 0:01:02.3]} 40. Kf3
{[%clk 0:01:29]} 40... Kf7 {[%clk 0:00:56.7]} 41. Nb5 {[%clk 0:01:17.9]} 41...
Nxb5 {[%clk 0:00:52]} 42. Bxb5 {[%clk 0:01:15.9]} 42... Kxe7 {[%clk 0:00:50.7]}
43. Bc6 {[%clk 0:01:15.4]} 43... Kd6 {[%clk 0:00:48.9]} 44. h3 {[%clk
0:01:13.6]} 44... Ra3+ {[%clk 0:00:46.6]} 45. Kf4 {[%clk 0:01:12.1]} 45... h6
{[%clk 0:00:43.8]} 46. g4 {[%clk 0:01:07.8]} 46... fxg4 {[%clk 0:00:40.9]} 47.
hxg4 {[%clk 0:01:06.6]} 47... g5+ {[%clk 0:00:38.9]} 48. Kf5 {[%clk 0:01:05.5]}
48... Rf3+ {[%clk 0:00:35.5]} 49. Kg6 {[%clk 0:01:03.9]} 49... Rf4 {[%clk
0:00:33.8]} 50. Kh5 {[%clk 0:01:00.3]} 50... Rf6 {[%clk 0:00:25.9]} 51. Ba8
{[%clk 0:00:58.1]} 51... Rf8 {[%clk 0:00:22.1]} 52. Bc6 {[%clk 0:00:54.6]} 52...
Rf6 {[%clk 0:00:20]} 53. Bb7 {[%clk 0:00:50.8]} 53... Rf7 {[%clk 0:00:18]} 54.
Ba6 {[%clk 0:00:44.1]} 54... Kxd5 {[%clk 0:00:15.6]} 55. Bd3 {[%clk 0:00:35.7]}
55... Rf6 {[%clk 0:00:13.6]} 56. Bg6 {[%clk 0:00:34]} 56... Ke5 {[%clk 0:00:11]}
57. Kxh6 {[%clk 0:00:29.2]} 57... Kf4 {[%clk 0:00:09.5]} 58. Kh5 {[%clk
0:00:28.8]} 58... Rxg6 {[%clk 0:00:05]} 59. Kxg6 {[%clk 0:00:27.9]} 59... Kxg4
{[%clk 0:00:03.3]} 60. Kf6 {[%clk 0:00:27.8]} 60... Kh4 {[%clk 0:00:01]} 61. Ke5
{[%clk 0:00:27.7]} 1/2-1/2

[Event "Live Chess"]
[Site "Chess.com"]
[Date "2023.05.21"]
[Round "-"]
[White "ConorMaclaud"]
[Black "viktorskliarov"]
[Result "0-1"]
[WhiteElo "2122"]
[BlackElo "2628"]
[TimeControl "300"]
[EndTime "8:46:20 PDT"]
[Termination "viktorskliarov won by resignation"]

1. Nf3 {[%clk 0:04:58.4]} 1... c5 {[%clk 0:04:58.3]} 2. e3 {[%clk 0:04:57.3]}
2... Nc6 {[%clk 0:04:53]} 3. d4 {[%clk 0:04:56.6]} 3... cxd4 {[%clk 0:04:51.2]}
4. exd4 {[%clk 0:04:55.4]} 4... d5 {[%clk 0:04:50.9]} 5. c4 {[%clk 0:04:54.2]}
5... Nf6 {[%clk 0:04:47]} 6. Nc3 {[%clk 0:04:52.8]} 6... Be6 {[%clk 0:04:43.1]}
7. Ng5 {[%clk 0:04:36.8]} 7... Qd7 {[%clk 0:04:36.5]} 8. Nb5 {[%clk 0:03:51.4]}
8... a6 {[%clk 0:04:14.1]} 9. Nxe6 {[%clk 0:03:44.3]} 9... Qxe6+ {[%clk
0:04:12.6]} 10. Be2 {[%clk 0:03:35.7]} 10... axb5 {[%clk 0:04:10.7]} 11. cxd5
{[%clk 0:03:32.5]} 11... Qxd5 {[%clk 0:04:05.1]} 12. O-O {[%clk 0:03:24.2]}
12... e6 {[%clk 0:04:04.3]} 13. Bf3 {[%clk 0:03:23]} 13... Qd7 {[%clk
0:04:03.2]} 14. Re1 {[%clk 0:03:16.9]} 14... Nd5 {[%clk 0:03:59.4]} 15. Qb3
{[%clk 0:03:11.1]} 15... Be7 {[%clk 0:03:44.4]} 16. Qxb5 {[%clk 0:02:49.5]}
16... Nxd4 {[%clk 0:03:37.5]} 17. Qxd7+ {[%clk 0:02:40.1]} 17... Kxd7 {[%clk
0:03:35.8]} 18. Bxd5 {[%clk 0:02:33.9]} 18... exd5 {[%clk 0:03:34.9]} 19. Rd1
{[%clk 0:02:32.2]} 19... Bf6 {[%clk 0:03:29.2]} 20. Be3 {[%clk 0:02:28.6]} 20...
Nc2 {[%clk 0:03:27.2]} 21. Rac1 {[%clk 0:02:17.1]} 21... Nxe3 {[%clk 0:03:25.6]}
22. fxe3 {[%clk 0:02:17]} 22... Rxa2 {[%clk 0:03:24.2]} 23. Rxd5+ {[%clk
0:02:13.9]} 23... Ke6 {[%clk 0:03:23.3]} 24. Rb5 {[%clk 0:01:53.9]} 24... Rxb2
{[%clk 0:03:16.3]} 25. Rxb2 {[%clk 0:01:52.7]} 25... Bxb2 {[%clk 0:03:16.2]} 26.
Rb1 {[%clk 0:01:52.2]} 26... Be5 {[%clk 0:03:14.4]} 27. Rxb7 {[%clk 0:01:51.3]}
27... Rb8 {[%clk 0:03:13.4]} 28. Ra7 {[%clk 0:01:45.2]} 28... Rb1+ {[%clk
0:03:10.4]} 29. Kf2 {[%clk 0:01:44.7]} 29... Bxh2 {[%clk 0:03:06.3]} 30. g3
{[%clk 0:01:36.3]} 30... Bg1+ {[%clk 0:03:04.8]} 31. Kg2 {[%clk 0:01:34.3]}
31... Bxe3 {[%clk 0:03:02.7]} 0-1

[Event "Live Chess"]
[Site "Chess.com"]
[Date "2023.05.21"]
[Round "-"]
[White "Duke_of_Bebington"]
[Black "LL220284LL"]
[Result "0-1"]
[WhiteElo "1567"]
[BlackElo "2237"]
[TimeControl "300"]
[EndTime "8:46:20 PDT"]
[Termination "LL220284LL won by resignation"]

1. e4 {[%clk 0:04:58.7]} 1... c6 {[%clk 0:04:57.9]} 2. d4 {[%clk 0:04:56.4]}
2... d5 {[%clk 0:04:57.4]} 3. e5 {[%clk 0:04:55.5]} 3... Bf5 {[%clk 0:04:56.5]}
4. g4 {[%clk 0:04:54.1]} 4... Bg6 {[%clk 0:04:55.4]} 5. h4 {[%clk 0:04:53.1]}
5... h5 {[%clk 0:04:54.2]} 6. g5 {[%clk 0:04:41]} 6... e6 {[%clk 0:04:53.5]} 7.
Bd3 {[%clk 0:04:39]} 7... Bxd3 {[%clk 0:04:50.5]} 8. Qxd3 {[%clk 0:04:38.9]}
8... Ne7 {[%clk 0:04:49.6]} 9. Be3 {[%clk 0:04:31.8]} 9... g6 {[%clk 0:04:48.5]}
10. Nd2 {[%clk 0:04:29.5]} 10... Nf5 {[%clk 0:04:47.5]} 11. O-O-O {[%clk
0:04:27.4]} 11... Be7 {[%clk 0:04:45.3]} 12. Nf1 {[%clk 0:04:16.3]} 12... Nd7
{[%clk 0:04:42.6]} 13. Ng3 {[%clk 0:04:15.8]} 13... Nxg3 {[%clk 0:04:39.5]} 14.
fxg3 {[%clk 0:04:14.7]} 14... O-O {[%clk 0:04:39]} 15. Ne2 {[%clk 0:04:11.9]}
15... c5 {[%clk 0:04:37.3]} 16. Rdf1 {[%clk 0:04:06.9]} 16... Rc8 {[%clk
0:04:35.4]} 17. c3 {[%clk 0:04:05.3]} 17... Qa5 {[%clk 0:04:33.1]} 18. Kb1
{[%clk 0:04:04]} 18... cxd4 {[%clk 0:04:31.4]} 19. Bxd4 {[%clk 0:04:01.9]} 19...
Nc5 {[%clk 0:04:30.1]} 20. Bxc5 {[%clk 0:03:59.3]} 20... Qxc5 {[%clk 0:04:27.2]}
21. g4 {[%clk 0:03:53.6]} 21... hxg4 {[%clk 0:04:23]} 22. h5 {[%clk 0:03:51]}
22... Qc4 {[%clk 0:04:21.3]} 23. Qc2 {[%clk 0:03:47.9]} 23... Qe4 {[%clk
0:04:16.2]} 24. hxg6 {[%clk 0:03:39.3]} 24... fxg6 {[%clk 0:04:10.5]} 25. Qxe4
{[%clk 0:03:31.4]} 25... dxe4 {[%clk 0:04:08.9]} 26. Rhg1 {[%clk 0:03:29.2]}
26... Rxf1+ {[%clk 0:04:04.5]} 27. Rxf1 {[%clk 0:03:29.1]} 27... Bxg5 {[%clk
0:04:04]} 28. Rg1 {[%clk 0:03:26.1]} 28... Rf8 {[%clk 0:03:48.1]} 29. Ng3 {[%clk
0:03:13.7]} 29... e3 {[%clk 0:03:39]} 30. Ne4 {[%clk 0:03:11.3]} 30... e2 {[%clk
0:03:35.5]} 31. Nxg5 {[%clk 0:03:00.3]} 31... Rf1+ {[%clk 0:03:33.8]} 32. Rxf1
{[%clk 0:02:59.9]} 32... exf1=Q+ {[%clk 0:03:32.8]} 33. Kc2 {[%clk 0:02:59.8]}
33... Qf5+ {[%clk 0:03:32]} 0-1